{"text_format":"3","workbook":"xlsx","n_sheets":2,"sheets":["RSVP Tracker","RSVP Summary"],"not_rendered":{"charts":2,"defined_names":22},"read":"whole","date_system":"1900"}

{"sheet":"RSVP Tracker","index":0,"n_rows":15,"n_cols":15,"rows_kept":15,"merged":[[0,3,0,4],[0,5,0,7],[1,3,1,14]]}
[{"$nulls":5},"REZUMAT RĂSPUNSURI"]
[null,"DATA NUNȚII",null,"foaie de monitorizare a invitațiilor la nuntă"]
[null,{"$f":"TODAY()+283","v":"2018-12-01"},null,"NUME INVITAT","TRIMIS?","RĂSPUNS","PETRECERE","INVITAT DE","RELAȚIE","ADRESĂ","LOCALITATE","JUDEȚ","Cod poștal","TELEFON","E-MAIL DE CONTACT"]
[null,"ZILE RĂMASE",null,"Nume 1","Da","Da",1,"Partenerul 1","Frate","Adresă","Localitate","Județ","Cod poștal","Telefon","cineva@example.com"]
[null,{"$f":"DaysRemaining","v":283},null,"Nume 2","Da","Nu",3,"Partenerul 1","Prieten","Adresă","Localitate","Județ","Cod poștal","Telefon","cineva@example.com"]
[null,"PARTICIPĂ",null,"Nume 3","Da","Da",1,"Altul","Prieten","Adresă","Localitate","Județ","Cod poștal","Telefon","cineva@example.com"]
[null,{"$f":"TotalAttending","v":12},null,"Nume 4","Da","Nu",2,"Partenerul 2","Prieten","Adresă","Localitate","Județ","Cod poștal","Telefon","cineva@example.com"]
[null,"NU PARTICIPĂ",null,"Nume 5","Da","Da",2,"Partenerul 2","Prieten","Adresă","Localitate","Județ","Cod poștal","Telefon","cineva@example.com"]
[null,{"$f":"TotalNotAttending","v":6},null,"Nume 6","Da","Încercare",null,"Altul","Prieten","Adresă","Localitate","Județ","Cod poștal","Telefon","cineva@example.com"]
[null,"RĂMAȘI",null,"Nume 7","Da","Da",2,"Partenerul 2","Prieten","Adresă","Localitate","Județ","Cod poștal","Telefon","cineva@example.com"]
[null,{"$f":"OutstandingRSVP","v":1},null,"Nume 8","Da","Nu",1,"Altul","Prieten","Adresă","Localitate","Județ","Cod poștal","Telefon","cineva@example.com"]
[{"$nulls":3},"Nume 9","Da","Da",4,"Partenerul 1","Prieten","Adresă","Localitate","Județ","Cod poștal","Telefon","cineva@example.com"]
[{"$nulls":3},"Nume 10","Da","Da",2,"Partenerul 1","Prieten","Adresă","Localitate","Județ","Cod poștal","Telefon","cineva@example.com"]
[{"$nulls":3},"Nume 11","Da",null,null,"Partenerul 2","Frate","Adresă","Localitate","Județ","Cod poștal","Telefon","cineva@example.com"]
[{"$nulls":3},"TOTALURI:",{"$f":"COUNTIF('RSVP Tracker'!$E$4:$E$14,\"Yes\")","v":11},{"$f":"COUNTA('RSVP Tracker'!$F$4:$F$14)","v":10},{"$f":"SUBTOTAL(109,tblInvites[PETRECERE])","v":18}]

{"sheet":"RSVP Summary","index":1,"n_rows":11,"n_cols":15,"rows_kept":11,"merged":[[0,3,0,4],[0,5,0,8],[1,3,1,11],[2,3,6,3],[2,4,6,4],[7,3,11,3],[7,4,11,4]]}
[{"$nulls":3},"MONITORIZARE RĂSPUNSURI"]
[null,"DATA NUNȚII",null,"rezumat răspunsuri",{"$nulls":10},"note"]
[null,{"$f":"WeddingDate","v":"2018-12-01"},null,"DA","Diagramă cu bare grupată ce afișează tipurile de invitați pentru răspunsurile cu Da în această celulă."]
[null,"ZILE RĂMASE",{"$nulls":3},"ALTELE",{"$f":"IFERROR(SUMIFS(tblInvites[PETRECERE],tblInvites[INVITAT DE],\"=Other\",tblInvites[RĂSPUNS],\"Yes\"),0)","v":1},{"$f":"tblInvites[[#Totals],[SENT?]]","v":11}]
[null,{"$f":"DaysRemaining","v":283},{"$nulls":3},"PARTENERUL 2",{"$f":"IFERROR(SUMIFS(tblInvites[PETRECERE],tblInvites[INVITAT DE],\"=Spouse-to-be 2\",tblInvites[RĂSPUNS],\"Yes\"),0)","v":4},{"$f":"tblInvites[[#Totals],[SENT?]]","v":11}]
[null,"PARTICIPĂ",{"$nulls":3},"PARTENERUL 1",{"$f":"IFERROR(SUMIFS(tblInvites[PETRECERE],tblInvites[INVITAT DE],\"=Spouse-to-be 1\",tblInvites[RĂSPUNS],\"Yes\"),0)","v":7},{"$f":"tblInvites[[#Totals],[SENT?]]","v":11}]
[null,{"$f":"TotalAttending","v":12}]
[null,"NU PARTICIPĂ",null,"NU","Diagramă cu bare grupată ce afișează tipurile de invitați pentru răspunsurile cu Nu în această celulă."]
[null,{"$f":"TotalNotAttending","v":6},{"$nulls":3},"ALTELE",{"$f":"IFERROR(SUMIFS(tblInvites[PETRECERE],tblInvites[INVITAT DE],\"=Other\",tblInvites[RĂSPUNS],\"No\"),0)","v":1},{"$f":"tblInvites[[#Totals],[SENT?]]","v":11}]
[null,"RĂMAȘI",{"$nulls":3},"PARTENERUL 2",{"$f":"IFERROR(SUMIFS(tblInvites[PETRECERE],tblInvites[INVITAT DE],\"=Spouse-to-be 2\",tblInvites[RĂSPUNS],\"No\"),0)","v":2},{"$f":"tblInvites[[#Totals],[SENT?]]","v":11}]
[null,{"$f":"OutstandingRSVP","v":1},{"$nulls":3},"PARTENERUL 1",{"$f":"IFERROR(SUMIFS(tblInvites[PETRECERE],tblInvites[INVITAT DE],\"=Spouse-to-be 1\",tblInvites[RĂSPUNS],\"No\"),0)","v":3},{"$f":"tblInvites[[#Totals],[SENT?]]","v":11}]